[Event "Late-Titled-Tuesday-Blitz-June-25-2024"]
[Site "Chess.com"]
[Date "2024.06.25"]
[Round "1"]
[White "GAZZAN_3000"]
[Black "JowJowTWT"]
[Result "1-0"]
[WhiteElo "2762"]
[BlackElo "2446"]
[TimeControl "180+1"]
[EndTime "14:07:22 PDT"]
[Termination "GAZZAN_3000 won by resignation"]

1. d4 {[%clk 0:03:00.9]} 1... Nf6 {[%clk 0:02:59.8]} 2. Nf3 {[%clk 0:03:00.7]}
2... e6 {[%clk 0:03:00.6]} 3. c4 {[%clk 0:03:01]} 3... Bb4+ {[%clk 0:03:00.5]}
4. Bd2 {[%clk 0:03:00.3]} 4... a5 {[%clk 0:03:01.1]} 5. Nc3 {[%clk 0:02:59.8]}
5... O-O {[%clk 0:02:59.4]} 6. e3 {[%clk 0:02:59.8]} 6... d5 {[%clk 0:02:59.1]}
7. Bd3 {[%clk 0:02:59.5]} 7... c5 {[%clk 0:02:55.9]} 8. a3 {[%clk 0:02:53.4]}
8... cxd4 {[%clk 0:02:52.7]} 9. axb4 {[%clk 0:02:42.2]} 9... dxc3 {[%clk
0:02:52.3]} 10. Bxc3 {[%clk 0:02:40.5]} 10... dxc4 {[%clk 0:02:49.2]} 11. Bxc4
{[%clk 0:02:38.7]} 11... Qxd1+ {[%clk 0:02:49.7]} 12. Rxd1 {[%clk 0:02:32.9]}
12... Bd7 {[%clk 0:02:39.7]} 13. bxa5 {[%clk 0:02:31]} 13... Rc8 {[%clk
0:02:39]} 14. Ne5 {[%clk 0:02:19.8]} 14... Be8 {[%clk 0:02:35.6]} 15. O-O {[%clk
0:02:10.4]} 15... Nc6 {[%clk 0:02:27.6]} 16. Nxc6 {[%clk 0:02:09.2]} 16... Bxc6
{[%clk 0:02:27.2]} 17. Be2 {[%clk 0:01:57.3]} 17... Nd5 {[%clk 0:02:24.4]} 18.
Bd2 {[%clk 0:01:56.7]} 18... Ba4 {[%clk 0:02:14.5]} 19. Rc1 {[%clk 0:01:53.3]}
19... f5 {[%clk 0:01:48.5]} 20. b4 {[%clk 0:01:47]} 20... b5 {[%clk 0:01:37.3]}
21. Bd3 {[%clk 0:01:21.5]} 21... Rd8 {[%clk 0:01:25.9]} 22. Bc2 {[%clk
0:01:02.5]} 22... Bxc2 {[%clk 0:00:59.9]} 23. Rxc2 {[%clk 0:01:03.4]} 23... Rd7
{[%clk 0:00:55]} 24. Rfc1 {[%clk 0:00:54]} 24... Kf7 {[%clk 0:00:53.5]} 25. g3
{[%clk 0:00:53.8]} 25... Nf6 {[%clk 0:00:46.2]} 26. Bc3 {[%clk 0:00:46.7]} 26...
Nd5 {[%clk 0:00:39.6]} 27. Bd2 {[%clk 0:00:45.7]} 27... Raa7 {[%clk 0:00:34.1]}
28. Kf1 {[%clk 0:00:41.6]} 28... Nc7 {[%clk 0:00:28.1]} 29. Ke2 {[%clk
0:00:35.9]} 29... Ne8 {[%clk 0:00:28.4]} 30. Bc3 {[%clk 0:00:33.1]} 30... Nd6
{[%clk 0:00:27.2]} 31. Bd4 {[%clk 0:00:33.4]} 31... Rab7 {[%clk 0:00:24.2]} 32.
a6 {[%clk 0:00:32.5]} 32... Rb8 {[%clk 0:00:24.8]} 33. Rc7 {[%clk 0:00:32.4]}
33... Ke8 {[%clk 0:00:20]} 34. Bxg7 {[%clk 0:00:16.7]} 34... Ra8 {[%clk
0:00:18.5]} 35. Rxd7 {[%clk 0:00:13.7]} 35... Kxd7 {[%clk 0:00:19.4]} 36. Ra1
{[%clk 0:00:14]} 36... Kc6 {[%clk 0:00:19.7]} 37. Bd4 {[%clk 0:00:13.9]} 37...
Nc4 {[%clk 0:00:19.9]} 38. a7 {[%clk 0:00:14]} 38... e5 {[%clk 0:00:18.1]} 39.
Bc5 {[%clk 0:00:13.8]} 39... e4 {[%clk 0:00:18.8]} 40. Ra6+ {[%clk 0:00:13.6]}
40... Kb7 {[%clk 0:00:19.1]} 41. Rf6 {[%clk 0:00:14]} 41... Rd8 {[%clk 0:00:19]}
42. Rf7+ {[%clk 0:00:13.9]} 42... Kc6 {[%clk 0:00:18.9]} 43. Rxf5 {[%clk
0:00:11.8]} 43... Rd2+ {[%clk 0:00:19.2]} 44. Kf1 {[%clk 0:00:12.3]} 44... Ra2
{[%clk 0:00:20.1]} 45. Rf8 {[%clk 0:00:12.1]} 45... Nd2+ {[%clk 0:00:20.5]} 46.
Kg2 {[%clk 0:00:12.4]} 46... Nf3 {[%clk 0:00:21.4]} 47. a8=Q+ {[%clk 0:00:12.5]}
47... Rxa8 {[%clk 0:00:20.8]} 48. Rxa8 {[%clk 0:00:13.4]} 1-0

[Event "Late-Titled-Tuesday-Blitz-June-25-2024"]
[Site "Chess.com"]
[Date "2024.06.25"]
[Round "1"]
[White "Zurability"]
[Black "dosto07"]
[Result "1-0"]
[WhiteElo "2767"]
[BlackElo "2451"]
[TimeControl "180+1"]
[EndTime "14:07:24 PDT"]
[Termination "Zurability won by checkmate"]

1. e4 {[%clk 0:02:53.1]} 1... e5 {[%clk 0:03:00.1]} 2. Nf3 {[%clk 0:02:45.4]}
2... Nc6 {[%clk 0:02:58.1]} 3. Bc4 {[%clk 0:02:43.8]} 3... Bc5 {[%clk
0:02:58.5]} 4. c3 {[%clk 0:02:39.8]} 4... Nf6 {[%clk 0:02:58.9]} 5. d3 {[%clk
0:02:40.4]} 5... d6 {[%clk 0:02:58.6]} 6. h3 {[%clk 0:02:39.4]} 6... a6 {[%clk
0:02:59.1]} 7. Bb3 {[%clk 0:02:39.5]} 7... Ba7 {[%clk 0:02:59.5]} 8. Nbd2 {[%clk
0:02:39.1]} 8... h6 {[%clk 0:02:59.6]} 9. Nf1 {[%clk 0:02:39.6]} 9... Be6 {[%clk
0:02:57.9]} 10. Bc2 {[%clk 0:02:39.6]} 10... Qd7 {[%clk 0:02:54]} 11. Ng3 {[%clk
0:02:38.3]} 11... d5 {[%clk 0:02:51.5]} 12. exd5 {[%clk 0:02:30.2]} 12... Bxd5
{[%clk 0:02:49.9]} 13. O-O {[%clk 0:02:22.9]} 13... O-O {[%clk 0:02:42.6]} 14.
Re1 {[%clk 0:02:21.6]} 14... Rfe8 {[%clk 0:02:42]} 15. Nh4 {[%clk 0:02:18.1]}
15... Rad8 {[%clk 0:02:35.7]} 16. Qe2 {[%clk 0:02:01.8]} 16... Be6 {[%clk
0:02:23.7]} 17. Nh5 {[%clk 0:01:54.7]} 17... Nxh5 {[%clk 0:02:15.7]} 18. Qxh5
{[%clk 0:01:55.6]} 18... Bd5 {[%clk 0:02:04.9]} 19. Nf5 {[%clk 0:01:34.9]} 19...
Ne7 {[%clk 0:01:41.5]} 20. d4 {[%clk 0:01:04.8]} 20... Nxf5 {[%clk 0:01:33.9]}
21. Bxf5 {[%clk 0:01:02.8]} 21... Qc6 {[%clk 0:01:33.9]} 22. dxe5 {[%clk
0:00:40.4]} 22... Bxg2 {[%clk 0:01:27.8]} 23. Qg4 {[%clk 0:00:35]} 23... Bf3
{[%clk 0:01:23]} 24. Qg3 {[%clk 0:00:35.1]} 24... Kh8 {[%clk 0:01:11.6]} 25. Bf4
{[%clk 0:00:33.6]} 25... Bh5 {[%clk 0:00:52.8]} 26. Be4 {[%clk 0:00:28.7]} 26...
Qb5 {[%clk 0:00:46.5]} 27. b3 {[%clk 0:00:24.4]} 27... c6 {[%clk 0:00:32.9]} 28.
c4 {[%clk 0:00:22.4]} 28... Qb4 {[%clk 0:00:31.6]} 29. Qh4 {[%clk 0:00:20.2]}
29... Bg6 {[%clk 0:00:27.2]} 30. Bxg6 {[%clk 0:00:19.6]} 30... fxg6 {[%clk
0:00:27.4]} 31. Bxh6 {[%clk 0:00:19.1]} 31... Kg8 {[%clk 0:00:21.3]} 32. Bg5
{[%clk 0:00:16.5]} 32... Rd3 {[%clk 0:00:16.5]} 33. Qe4 {[%clk 0:00:14.5]} 33...
Qc3 {[%clk 0:00:12.2]} 34. Kg2 {[%clk 0:00:09.3]} 34... Qc2 {[%clk 0:00:11.3]}
35. Re2 {[%clk 0:00:09.1]} 35... Qc3 {[%clk 0:00:10.1]} 36. Qxg6 {[%clk
0:00:09]} 36... Rxe5 {[%clk 0:00:08.8]} 37. Rae1 {[%clk 0:00:06.2]} 37... Rxe2
{[%clk 0:00:07.5]} 38. Rxe2 {[%clk 0:00:07.1]} 38... Rd8 {[%clk 0:00:02.9]} 39.
Bxd8 {[%clk 0:00:06.5]} 39... Qc1 {[%clk 0:00:01.2]} 40. Re8# {[%clk 0:00:06.5]}
1-0

[Event "Late-Titled-Tuesday-Blitz-June-25-2024"]
[Site "Chess.com"]
[Date "2024.06.25"]
[Round "1"]
[White "Bykov_Egor"]
[Black "PawnEatingZombie"]
[Result "1-0"]
[WhiteElo "2617"]
[BlackElo "2314"]
[TimeControl "180+1"]
[EndTime "14:07:24 PDT"]
[Termination "Bykov_Egor won on time"]

1. Nf3 {[%clk 0:02:59.2]} 1... Nf6 {[%clk 0:02:58.8]} 2. b3 {[%clk 0:02:58.9]}
2... g6 {[%clk 0:02:59.2]} 3. Bb2 {[%clk 0:02:59.2]} 3... Bg7 {[%clk 0:02:59.8]}
4. d4 {[%clk 0:02:58.9]} 4... O-O {[%clk 0:03:00]} 5. e3 {[%clk 0:02:58.3]} 5...
d6 {[%clk 0:02:59.8]} 6. Nbd2 {[%clk 0:02:58.3]} 6... c5 {[%clk 0:02:58.3]} 7.
c4 {[%clk 0:02:50.1]} 7... cxd4 {[%clk 0:02:55.7]} 8. Nxd4 {[%clk 0:02:50]} 8...
Nc6 {[%clk 0:02:54.5]} 9. Be2 {[%clk 0:02:47.4]} 9... Bd7 {[%clk 0:02:53.5]} 10.
O-O {[%clk 0:02:45.3]} 10... a6 {[%clk 0:02:53.2]} 11. Nxc6 {[%clk 0:02:41.6]}
11... bxc6 {[%clk 0:02:49.8]} 12. Qc2 {[%clk 0:02:36.9]} 12... c5 {[%clk
0:02:49.2]} 13. Rfe1 {[%clk 0:02:31.1]} 13... a5 {[%clk 0:02:49]} 14. e4 {[%clk
0:02:28.6]} 14... a4 {[%clk 0:02:42.7]} 15. e5 {[%clk 0:02:27.1]} 15... Ne8
{[%clk 0:02:26.6]} 16. exd6 {[%clk 0:02:23.7]} 16... Nxd6 {[%clk 0:02:24.3]} 17.
Bf3 {[%clk 0:02:20]} 17... Bf5 {[%clk 0:02:09.3]} 18. Qc1 {[%clk 0:02:13.6]}
18... Ra7 {[%clk 0:02:00.2]} 19. Bxg7 {[%clk 0:02:13.1]} 19... Kxg7 {[%clk
0:02:00.2]} 20. Qc3+ {[%clk 0:02:13.1]} 20... Kg8 {[%clk 0:01:57.5]} 21. Qe5
{[%clk 0:02:11.4]} 21... Qc7 {[%clk 0:01:47.8]} 22. Nf1 {[%clk 0:01:59.4]} 22...
Rb8 {[%clk 0:01:32.2]} 23. Ne3 {[%clk 0:01:56.4]} 23... Be6 {[%clk 0:01:06]} 24.
Bd5 {[%clk 0:01:49.5]} 24... Ne8 {[%clk 0:00:41.9]} 25. Qg5 {[%clk 0:01:30]}
25... Bc8 {[%clk 0:00:27.4]} 26. Bf3 {[%clk 0:01:06.6]} 26... e6 {[%clk
0:00:26.5]} 27. Rad1 {[%clk 0:01:01.1]} 27... Bb7 {[%clk 0:00:24.1]} 28. Bxb7
{[%clk 0:00:58.1]} 28... Raxb7 {[%clk 0:00:23.5]} 29. bxa4 {[%clk 0:00:56.2]}
29... Qe7 {[%clk 0:00:18.4]} 30. Qe5 {[%clk 0:00:52.2]} 30... Qf8 {[%clk
0:00:16.9]} 31. h4 {[%clk 0:00:45.5]} 31... h5 {[%clk 0:00:15.7]} 32. a5 {[%clk
0:00:41.9]} 32... Ra8 {[%clk 0:00:15.3]} 33. g4 {[%clk 0:00:36.8]} 33... Ng7
{[%clk 0:00:14.7]} 34. Rd6 {[%clk 0:00:24.2]} 34... Rxa5 {[%clk 0:00:08.3]} 35.
Red1 {[%clk 0:00:24.5]} 35... Ra8 {[%clk 0:00:07.3]} 36. Qxc5 {[%clk 0:00:23.4]}
36... Rd7 {[%clk 0:00:03.3]} 37. Qe5 {[%clk 0:00:17.1]} 37... Rxd6 {[%clk
0:00:03.6]} 38. Rxd6 {[%clk 0:00:18]} 38... Rxa2 {[%clk 0:00:03.1]} 39. c5
{[%clk 0:00:18.6]} 39... Ra1+ {[%clk 0:00:01.6]} 40. Kg2 {[%clk 0:00:18.6]}
40... Rc1 {[%clk 0:00:01.3]} 41. Qg5 {[%clk 0:00:17.6]} 1-0

[Event "Late-Titled-Tuesday-Blitz-June-25-2024"]
[Site "Chess.com"]
[Date "2024.06.25"]
[Round "1"]
[White "Jahonas"]
[Black "tactic"]
[Result "1-0"]
[WhiteElo "2435"]
[BlackElo "2698"]
[TimeControl "180+1"]
[EndTime "14:07:25 PDT"]
[Termination "Jahonas won by checkmate"]

1. d4 {[%clk 0:03:00.5]} 1... Nf6 {[%clk 0:02:52.2]} 2. c4 {[%clk 0:02:59.6]}
2... e6 {[%clk 0:02:43.8]} 3. Nf3 {[%clk 0:02:59.2]} 3... d5 {[%clk 0:02:44.4]}
4. Nc3 {[%clk 0:02:57.3]} 4... Bb4 {[%clk 0:02:43.9]} 5. Qb3 {[%clk 0:02:57]}
5... Nc6 {[%clk 0:02:43.1]} 6. cxd5 {[%clk 0:02:53.3]} 6... exd5 {[%clk
0:02:44]} 7. Bg5 {[%clk 0:02:51.8]} 7... O-O {[%clk 0:02:34.6]} 8. e3 {[%clk
0:02:50.9]} 8... Be6 {[%clk 0:02:23]} 9. Bd3 {[%clk 0:02:42]} 9... h6 {[%clk
0:02:04.8]} 10. Bh4 {[%clk 0:02:38.9]} 10... Rb8 {[%clk 0:01:42.2]} 11. O-O
{[%clk 0:02:37.3]} 11... Be7 {[%clk 0:01:34.5]} 12. Rac1 {[%clk 0:02:28]} 12...
Na5 {[%clk 0:01:32]} 13. Qc2 {[%clk 0:02:22.5]} 13... Qd7 {[%clk 0:01:21.5]} 14.
Bg3 {[%clk 0:02:18.9]} 14... Rfc8 {[%clk 0:01:19.9]} 15. Bb5 {[%clk 0:02:10.9]}
15... c6 {[%clk 0:00:58]} 16. Bd3 {[%clk 0:01:51.8]} 16... Bd6 {[%clk
0:00:54.1]} 17. Ne5 {[%clk 0:01:35.7]} 17... Qe7 {[%clk 0:00:48.3]} 18. a3
{[%clk 0:01:31.1]} 18... b5 {[%clk 0:00:41.8]} 19. Qe2 {[%clk 0:01:11.1]} 19...
Nc4 {[%clk 0:00:33.1]} 20. e4 {[%clk 0:00:57.1]} 20... Bxe5 {[%clk 0:00:20.2]}
21. dxe5 {[%clk 0:00:56.6]} 21... Nd7 {[%clk 0:00:20.8]} 22. exd5 {[%clk
0:00:55.7]} 22... cxd5 {[%clk 0:00:21.2]} 23. f4 {[%clk 0:00:51]} 23... Nc5
{[%clk 0:00:18.8]} 24. Bb1 {[%clk 0:00:47.8]} 24... Bd7 {[%clk 0:00:14]} 25.
Rce1 {[%clk 0:00:46.7]} 25... Na4 {[%clk 0:00:12.8]} 26. Nxd5 {[%clk 0:00:31.2]}
26... Qc5+ {[%clk 0:00:12.5]} 27. Ne3 {[%clk 0:00:31.4]} 27... Naxb2 {[%clk
0:00:11.1]} 28. Bf2 {[%clk 0:00:30.4]} 28... Qxa3 {[%clk 0:00:11.1]} 29. Nd5
{[%clk 0:00:28.3]} 29... Be6 {[%clk 0:00:10.8]} 30. Qe4 {[%clk 0:00:16.2]} 30...
Bxd5 {[%clk 0:00:09]} 31. Qxd5 {[%clk 0:00:13.8]} 31... Rd8 {[%clk 0:00:09.5]}
32. Qe4 {[%clk 0:00:12.8]} 32... Kf8 {[%clk 0:00:08.9]} 33. e6 {[%clk
0:00:12.9]} 33... Re8 {[%clk 0:00:08.3]} 34. f5 {[%clk 0:00:10.6]} 34... Nd2
{[%clk 0:00:08.5]} 35. Qe5 {[%clk 0:00:09.1]} 35... Rbc8 {[%clk 0:00:06.4]} 36.
f6 {[%clk 0:00:07.3]} 36... g6 {[%clk 0:00:05.6]} 37. e7+ {[%clk 0:00:07.2]}
37... Kg8 {[%clk 0:00:05.7]} 38. Qf4 {[%clk 0:00:04.3]} 38... Kh7 {[%clk
0:00:03.9]} 39. Be3 {[%clk 0:00:03.9]} 39... Nxf1 {[%clk 0:00:03.4]} 40. Qxh6+
{[%clk 0:00:03.4]} 40... Kg8 {[%clk 0:00:04.3]} 41. Qg7# {[%clk 0:00:03.8]} 1-0

[Event "Late-Titled-Tuesday-Blitz-June-25-2024"]
[Site "Chess.com"]
[Date "2024.06.25"]
[Round "1"]
[White "jaramsdal"]
[Black "Chessgod9oninsta"]
[Result "0-1"]
[WhiteElo "2439"]
[BlackElo "2743"]
[TimeControl "180+1"]
[EndTime "14:07:29 PDT"]
[Termination "Chessgod9oninsta won by resignation"]

1. e4 {[%clk 0:02:58.7]} 1... e5 {[%clk 0:02:56.7]} 2. Nf3 {[%clk 0:02:57.6]}
2... Nc6 {[%clk 0:02:55]} 3. d4 {[%clk 0:02:53.1]} 3... exd4 {[%clk 0:02:54.8]}
4. c3 {[%clk 0:02:53.7]} 4... dxc3 {[%clk 0:02:49.5]} 5. Bc4 {[%clk 0:02:47.1]}
5... cxb2 {[%clk 0:02:46.5]} 6. Bxb2 {[%clk 0:02:48]} 6... Bb4+ {[%clk
0:02:46.5]} 7. Nc3 {[%clk 0:02:44.2]} 7... d5 {[%clk 0:02:43.9]} 8. exd5 {[%clk
0:02:19.2]} 8... Qe7+ {[%clk 0:02:26.9]} 9. Kd2 {[%clk 0:02:19.1]} 9... Na5
{[%clk 0:02:20.5]} 10. Bb5+ {[%clk 0:02:06.5]} 10... c6 {[%clk 0:02:19.1]} 11.
Re1 {[%clk 0:01:44.3]} 11... Be6 {[%clk 0:02:00]} 12. dxe6 {[%clk 0:01:39.9]}
12... O-O-O+ {[%clk 0:02:00]} 13. Bd3 {[%clk 0:01:37.9]} 13... Nc4+ {[%clk
0:01:51.4]} 14. Kc2 {[%clk 0:01:37.4]} 14... Nxb2 {[%clk 0:01:51.3]} 15. Kxb2
{[%clk 0:01:33.5]} 15... Qf6 {[%clk 0:01:46.7]} 16. Ne5 {[%clk 0:01:10.1]} 16...
Qxf2+ {[%clk 0:01:44.3]} 17. Re2 {[%clk 0:01:10.4]} 17... Qd4 {[%clk 0:01:35]}
18. Qb3 {[%clk 0:00:46.2]} 18... Nf6 {[%clk 0:01:33.4]} 19. Bf5 {[%clk 0:00:35]}
19... Nd5 {[%clk 0:01:19.7]} 20. e7+ {[%clk 0:00:30.7]} 20... Kc7 {[%clk
0:01:18.1]} 21. exd8=B+ {[%clk 0:00:28.9]} 21... Rxd8 {[%clk 0:01:19]} 22. Rc1
{[%clk 0:00:18.7]} 22... Nf4 {[%clk 0:00:51]} 23. Re4 {[%clk 0:00:14.7]} 23...
Qf2+ {[%clk 0:00:41.1]} 24. Rc2 {[%clk 0:00:14]} 24... Bxc3+ {[%clk 0:00:40.4]}
25. Qxc3 {[%clk 0:00:13.3]} 25... Qb6+ {[%clk 0:00:40.3]} 26. Ka1 {[%clk
0:00:11.6]} 26... Rd1+ {[%clk 0:00:34.7]} 27. Rc1 {[%clk 0:00:12]} 27... Nd5
{[%clk 0:00:27]} 28. Qc2 {[%clk 0:00:10.8]} 28... Ne3 {[%clk 0:00:21.6]} 29. Qb2
{[%clk 0:00:07]} 29... Rxc1+ {[%clk 0:00:13.8]} 30. Qxc1 {[%clk 0:00:07]} 30...
Nd5 {[%clk 0:00:13.3]} 31. Nc4 {[%clk 0:00:06.1]} 31... Qc5 {[%clk 0:00:13.1]}
32. Bh3 {[%clk 0:00:04.1]} 32... b5 {[%clk 0:00:11.6]} 33. Qf4+ {[%clk
0:00:03.6]} 33... Nxf4 {[%clk 0:00:10.8]} 34. Rxf4 {[%clk 0:00:04.2]} 34... bxc4
{[%clk 0:00:10.8]} 35. Rxf7+ {[%clk 0:00:04.8]} 35... Kb6 {[%clk 0:00:11.1]} 36.
Rxg7 {[%clk 0:00:05.2]} 36... Qd4+ {[%clk 0:00:11.3]} 37. Kb1 {[%clk 0:00:05.5]}
37... Qxg7 {[%clk 0:00:12.2]} 38. Kc2 {[%clk 0:00:05.4]} 38... Qd4 {[%clk
0:00:12.6]} 39. Bg4 {[%clk 0:00:05.2]} 39... Qxg4 {[%clk 0:00:11.7]} 40. h3
{[%clk 0:00:06.1]} 40... Qd4 {[%clk 0:00:11.7]} 0-1

[Event "Late-Titled-Tuesday-Blitz-June-25-2024"]
[Site "Chess.com"]
[Date "2024.06.25"]
[Round "1"]
[White "ManMish2"]
[Black "KatakuriDono"]
[Result "1-0"]
[WhiteElo "2626"]
[BlackElo "2327"]
[TimeControl "180+1"]
[EndTime "14:07:30 PDT"]
[Termination "ManMish2 won by resignation"]

1. e4 {[%clk 0:03:00.9]} 1... c5 {[%clk 0:02:59.9]} 2. c3 {[%clk 0:03:00.4]}
2... Nf6 {[%clk 0:02:58.3]} 3. e5 {[%clk 0:02:59.8]} 3... Nd5 {[%clk 0:02:58.6]}
4. d4 {[%clk 0:02:58.6]} 4... cxd4 {[%clk 0:02:58.3]} 5. Nf3 {[%clk 0:02:59.1]}
5... Nc6 {[%clk 0:02:58]} 6. Bc4 {[%clk 0:02:59.5]} 6... Nb6 {[%clk 0:02:55.1]}
7. Bb3 {[%clk 0:02:59.9]} 7... d6 {[%clk 0:02:53]} 8. exd6 {[%clk 0:02:59.1]}
8... e6 {[%clk 0:02:44.4]} 9. Nxd4 {[%clk 0:02:59.1]} 9... Nxd4 {[%clk
0:02:43.7]} 10. Qxd4 {[%clk 0:03:00]} 10... Qxd6 {[%clk 0:02:42.9]} 11. Be3
{[%clk 0:03:00.1]} 11... Bd7 {[%clk 0:02:26.4]} 12. O-O {[%clk 0:02:59.3]} 12...
Qxd4 {[%clk 0:02:26.5]} 13. Bxd4 {[%clk 0:02:58.7]} 13... Bc6 {[%clk 0:02:26.9]}
14. Nd2 {[%clk 0:02:57.1]} 14... O-O-O {[%clk 0:02:25.6]} 15. Rfd1 {[%clk
0:02:53.7]} 15... Rg8 {[%clk 0:02:24.9]} 16. a4 {[%clk 0:02:52.8]} 16... Kb8
{[%clk 0:02:16.3]} 17. a5 {[%clk 0:02:44.8]} 17... Nd5 {[%clk 0:02:15.7]} 18.
Nc4 {[%clk 0:02:11.6]} 18... f6 {[%clk 0:01:57.3]} 19. Ne3 {[%clk 0:02:07.7]}
19... Be7 {[%clk 0:01:51.5]} 20. Nxd5 {[%clk 0:01:51.5]} 20... Bxd5 {[%clk
0:01:52.4]} 21. Bxd5 {[%clk 0:01:51.1]} 21... Rxd5 {[%clk 0:01:53.3]} 22. c4
{[%clk 0:01:51.4]} 22... Rdd8 {[%clk 0:01:49]} 23. a6 {[%clk 0:01:29.3]} 23...
b6 {[%clk 0:01:43.3]} 24. Kf1 {[%clk 0:01:24.5]} 24... e5 {[%clk 0:01:43.2]} 25.
Be3 {[%clk 0:01:23.6]} 25... Rxd1+ {[%clk 0:01:39.3]} 26. Rxd1 {[%clk
0:01:24.5]} 26... Rd8 {[%clk 0:01:38.2]} 27. Rxd8+ {[%clk 0:01:19.6]} 27... Bxd8
{[%clk 0:01:39.1]} 28. b4 {[%clk 0:01:07.1]} 28... Be7 {[%clk 0:01:29]} 29. b5
{[%clk 0:01:05.4]} 29... Kc7 {[%clk 0:01:25.1]} 30. Ke2 {[%clk 0:01:03.8]} 30...
f5 {[%clk 0:01:18.7]} 31. f3 {[%clk 0:00:56.7]} 31... g6 {[%clk 0:01:17.9]} 32.
Kd3 {[%clk 0:00:56]} 32... Bd6 {[%clk 0:01:17.4]} 33. h3 {[%clk 0:00:54.3]}
33... Be7 {[%clk 0:01:09.1]} 34. g4 {[%clk 0:00:51.9]} 34... Bd6 {[%clk
0:01:08.9]} 35. Bg5 {[%clk 0:00:49.3]} 35... Kd7 {[%clk 0:01:04.9]} 36. Bh4
{[%clk 0:00:42.2]} 36... Kc7 {[%clk 0:00:59.9]} 37. gxf5 {[%clk 0:00:36]} 37...
gxf5 {[%clk 0:00:59.6]} 38. Bf6 {[%clk 0:00:31.6]} 38... Kd7 {[%clk 0:00:58.8]}
39. c5 {[%clk 0:00:18.1]} 39... Bxc5 {[%clk 0:00:51.1]} 40. Bxe5 {[%clk
0:00:16.9]} 40... Bd6 {[%clk 0:00:51.1]} 41. Kd4 {[%clk 0:00:14.6]} 41... Ke6
{[%clk 0:00:45.8]} 42. Bg7 {[%clk 0:00:12]} 42... Bc5+ {[%clk 0:00:41.9]} 43.
Kc4 {[%clk 0:00:11.6]} 43... Bd6 {[%clk 0:00:41.5]} 44. Bd4 {[%clk 0:00:11.2]}
44... Bc7 {[%clk 0:00:34.7]} 45. Bf2 {[%clk 0:00:11.1]} 45... Bd6 {[%clk
0:00:34.1]} 46. Bxb6 {[%clk 0:00:09.9]} 46... Bb8 {[%clk 0:00:30.5]} 47. Bf2
{[%clk 0:00:10.4]} 47... Kd7 {[%clk 0:00:29.8]} 48. Kd5 {[%clk 0:00:10.3]} 48...
h5 {[%clk 0:00:28.7]} 49. b6 {[%clk 0:00:10.3]} 49... axb6 {[%clk 0:00:23.7]}
50. Bxb6 {[%clk 0:00:11.2]} 1-0

[Event "Late-Titled-Tuesday-Blitz-June-25-2024"]
[Site "Chess.com"]
[Date "2024.06.25"]
[Round "1"]
[White "RandomNoob04"]
[Black "RodriQA"]
[Result "1/2-1/2"]
[WhiteElo "2810"]
[BlackElo "2482"]
[TimeControl "180+1"]
[EndTime "14:07:33 PDT"]
[Termination "Game drawn by repetition"]

1. e4 {[%clk 0:03:00.9]} 1... c6 {[%clk 0:02:56]} 2. d4 {[%clk 0:03:01.1]} 2...
d5 {[%clk 0:02:55.9]} 3. exd5 {[%clk 0:03:02]} 3... cxd5 {[%clk 0:02:55.9]} 4.
c4 {[%clk 0:03:02.9]} 4... Nf6 {[%clk 0:02:55.6]} 5. Nc3 {[%clk 0:03:03.4]} 5...
Nc6 {[%clk 0:02:55.9]} 6. Bg5 {[%clk 0:03:02.6]} 6... Be6 {[%clk 0:02:49.2]} 7.
Be2 {[%clk 0:03:01.2]} 7... h6 {[%clk 0:02:47.1]} 8. Bxf6 {[%clk 0:03:00.1]}
8... exf6 {[%clk 0:02:48]} 9. Bf3 {[%clk 0:03:00.4]} 9... Bb4 {[%clk 0:02:47.2]}
10. Ne2 {[%clk 0:02:59.8]} 10... O-O {[%clk 0:02:40.9]} 11. O-O {[%clk
0:02:59.9]} 11... Ne7 {[%clk 0:02:41.1]} 12. c5 {[%clk 0:02:58.8]} 12... b6
{[%clk 0:02:33.6]} 13. a3 {[%clk 0:02:55.8]} 13... Bxc3 {[%clk 0:02:32.1]} 14.
Nxc3 {[%clk 0:02:56.7]} 14... bxc5 {[%clk 0:02:26.3]} 15. dxc5 {[%clk
0:02:57.6]} 15... a6 {[%clk 0:02:12.1]} 16. b4 {[%clk 0:02:56.7]} 16... Rb8
{[%clk 0:02:10.3]} 17. Ne2 {[%clk 0:02:52.5]} 17... Nf5 {[%clk 0:02:06.3]} 18.
Nd4 {[%clk 0:02:51.9]} 18... Nxd4 {[%clk 0:01:59]} 19. Qxd4 {[%clk 0:02:52.8]}
19... Qc7 {[%clk 0:01:59.5]} 20. Rfd1 {[%clk 0:02:48.5]} 20... Rfd8 {[%clk
0:01:59.2]} 21. Rab1 {[%clk 0:02:46.2]} 21... Qe5 {[%clk 0:01:49.6]} 22. a4
{[%clk 0:02:13.2]} 22... Bf5 {[%clk 0:01:24]} 23. Rb2 {[%clk 0:02:03.3]} 23...
Qc7 {[%clk 0:01:19.4]} 24. g3 {[%clk 0:01:49.7]} 24... Be4 {[%clk 0:01:11.2]}
25. Qe3 {[%clk 0:01:30.8]} 25... Qc6 {[%clk 0:01:02.9]} 26. Bxe4 {[%clk
0:01:25.3]} 26... dxe4 {[%clk 0:01:03.8]} 27. Rxd8+ {[%clk 0:01:25.2]} 27...
Rxd8 {[%clk 0:01:03.3]} 28. b5 {[%clk 0:01:25.8]} 28... axb5 {[%clk 0:00:53.1]}
29. axb5 {[%clk 0:01:26.7]} 29... Qe6 {[%clk 0:00:53.6]} 30. Rd2 {[%clk
0:01:20.4]} 30... Ra8 {[%clk 0:00:53.3]} 31. Rd1 {[%clk 0:01:19.4]} 31... Qc4
{[%clk 0:00:44.8]} 32. b6 {[%clk 0:01:19.1]} 32... f5 {[%clk 0:00:42]} 33. Qd4
{[%clk 0:01:10.7]} 33... Qc2 {[%clk 0:00:37.8]} 34. b7 {[%clk 0:01:02.4]} 34...
Rb8 {[%clk 0:00:33.2]} 35. Qd8+ {[%clk 0:01:02.7]} 35... Kh7 {[%clk 0:00:28]}
36. c6 {[%clk 0:00:32.4]} 36... e3 {[%clk 0:00:16.6]} 37. fxe3 {[%clk
0:00:27.9]} 37... Rxd8 {[%clk 0:00:15.9]} 38. Rxd8 {[%clk 0:00:28.8]} 38... Qe2
{[%clk 0:00:16.1]} 39. Rh8+ {[%clk 0:00:06]} 39... Kg6 {[%clk 0:00:16.3]} 40.
Rxh6+ {[%clk 0:00:02.1]} 40... gxh6 {[%clk 0:00:15.6]} 41. b8=Q {[%clk 0:00:03]}
41... Qe1+ {[%clk 0:00:15.3]} 42. Kg2 {[%clk 0:00:03.7]} 42... Qe2+ {[%clk
0:00:15.6]} 43. Kg1 {[%clk 0:00:04.4]} 43... Qe1+ {[%clk 0:00:14.8]} 44. Kg2
{[%clk 0:00:05]} 44... Qe2+ {[%clk 0:00:10.4]} 45. Kh3 {[%clk 0:00:05.6]} 45...
Qh5+ {[%clk 0:00:10.1]} 46. Kg2 {[%clk 0:00:05.9]} 46... Qe2+ {[%clk 0:00:10.8]}
1/2-1/2